[Event "Late-Titled-Tuesday-Blitz-February-13-2024"]
[Site "Chess.com"]
[Date "2024.02.13"]
[Round "10"]
[White "titomagno_64"]
[Black "andrzej"]
[Result "1-0"]
[WhiteElo "2257"]
[BlackElo "2498"]
[TimeControl "180+1"]
[EndTime "15:55:18 PST"]
[Termination "titomagno_64 won on time"]

1. d4 {[%clk 0:03:00.9]} 1... d5 {[%clk 0:03:00.2]} 2. c4 {[%clk 0:03:01.1]}
2... e6 {[%clk 0:03:00.8]} 3. Nf3 {[%clk 0:03:01.1]} 3... Nf6 {[%clk 0:03:01.3]}
4. g3 {[%clk 0:03:01.8]} 4... dxc4 {[%clk 0:03:00.9]} 5. Qa4+ {[%clk 0:03:00.4]}
5... Bd7 {[%clk 0:02:42.4]} 6. Qxc4 {[%clk 0:03:01]} 6... c5 {[%clk 0:02:37.1]}
7. dxc5 {[%clk 0:02:59.5]} 7... Qc7 {[%clk 0:02:32.5]} 8. Be3 {[%clk 0:02:17.3]}
8... Nd5 {[%clk 0:02:31.2]} 9. Bd4 {[%clk 0:02:17.7]} 9... Nc6 {[%clk
0:02:31.3]} 10. e3 {[%clk 0:02:13]} 10... Rc8 {[%clk 0:02:12.4]} 11. Nc3 {[%clk
0:02:05.1]} 11... Nxc3 {[%clk 0:01:59.1]} 12. Qxc3 {[%clk 0:01:56.5]} 12... Nxd4
{[%clk 0:01:48.4]} 13. exd4 {[%clk 0:01:46.5]} 13... Be7 {[%clk 0:01:17.2]} 14.
Bg2 {[%clk 0:01:45.1]} 14... O-O {[%clk 0:01:17.2]} 15. O-O {[%clk 0:01:45.5]}
15... Bc6 {[%clk 0:01:08.8]} 16. Qe3 {[%clk 0:01:38]} 16... Rfd8 {[%clk
0:01:07]} 17. Ne5 {[%clk 0:01:27.2]} 17... Bxg2 {[%clk 0:01:05.8]} 18. Kxg2
{[%clk 0:01:28.1]} 18... b6 {[%clk 0:00:56.8]} 19. b4 {[%clk 0:01:27.8]} 19...
Qb7+ {[%clk 0:00:47.2]} 20. Kg1 {[%clk 0:01:18.6]} 20... Qd5 {[%clk 0:00:45.7]}
21. Rfd1 {[%clk 0:01:03.7]} 21... Bf6 {[%clk 0:00:44.6]} 22. Nf3 {[%clk
0:00:54.8]} 22... Qc4 {[%clk 0:00:37.2]} 23. a3 {[%clk 0:00:50.7]} 23... a5
{[%clk 0:00:30.9]} 24. Rac1 {[%clk 0:00:49.1]} 24... Qb5 {[%clk 0:00:29.2]} 25.
Qd3 {[%clk 0:00:32.4]} 25... Qa4 {[%clk 0:00:28.7]} 26. bxa5 {[%clk 0:00:25.3]}
26... Qxa5 {[%clk 0:00:27.3]} 27. c6 {[%clk 0:00:22]} 27... Qa4 {[%clk
0:00:21.9]} 28. Rc4 {[%clk 0:00:20]} 28... Qb5 {[%clk 0:00:19]} 29. Qc2 {[%clk
0:00:16.7]} 29... Rc7 {[%clk 0:00:17.7]} 30. Rc1 {[%clk 0:00:16.2]} 30... h6
{[%clk 0:00:15.9]} 31. a4 {[%clk 0:00:14.7]} 31... Qh5 {[%clk 0:00:14.9]} 32.
Kg2 {[%clk 0:00:12]} 32... Qd5 {[%clk 0:00:14.6]} 33. Qd3 {[%clk 0:00:07]} 33...
Rdc8 {[%clk 0:00:15.1]} 34. Qc3 {[%clk 0:00:05.7]} 34... g5 {[%clk 0:00:12.8]}
35. Kg1 {[%clk 0:00:05.9]} 35... Kg7 {[%clk 0:00:12.6]} 36. Ne5 {[%clk
0:00:05.1]} 36... Bxe5 {[%clk 0:00:12.3]} 37. dxe5 {[%clk 0:00:06]} 37... b5
{[%clk 0:00:10.1]} 38. axb5 {[%clk 0:00:05.9]} 38... Qxb5 {[%clk 0:00:11]} 39.
Rc5 {[%clk 0:00:05.9]} 39... Qe2 {[%clk 0:00:09.8]} 40. Qe3 {[%clk 0:00:04.6]}
40... Qa6 {[%clk 0:00:03.6]} 41. Qe4 {[%clk 0:00:04.3]} 1-0

[Event "Late-Titled-Tuesday-Blitz-February-13-2024"]
[Site "Chess.com"]
[Date "2024.02.13"]
[Round "10"]
[White "snowlord"]
[Black "bazar-wokzal"]
[Result "0-1"]
[WhiteElo "2831"]
[BlackElo "2682"]
[TimeControl "180+1"]
[EndTime "15:55:21 PST"]
[Termination "bazar-wokzal won by resignation"]

1. Nc3 {[%clk 0:03:00.9]} 1... d5 {[%clk 0:02:58.1]} 2. e4 {[%clk 0:03:00.7]}
2... d4 {[%clk 0:02:57.7]} 3. Nce2 {[%clk 0:03:00.6]} 3... e5 {[%clk 0:02:58.3]}
4. Ng3 {[%clk 0:03:01]} 4... Be6 {[%clk 0:02:58.9]} 5. Bb5+ {[%clk 0:02:59.5]}
5... c6 {[%clk 0:02:58.8]} 6. Ba4 {[%clk 0:02:59.9]} 6... Nd7 {[%clk 0:02:55.2]}
7. Bb3 {[%clk 0:02:52.1]} 7... Nc5 {[%clk 0:02:54.2]} 8. Bxe6 {[%clk 0:02:50.9]}
8... Nxe6 {[%clk 0:02:54.6]} 9. d3 {[%clk 0:02:51.5]} 9... Bb4+ {[%clk
0:02:53.4]} 10. Kf1 {[%clk 0:02:47.9]} 10... Ne7 {[%clk 0:02:50.1]} 11. Nf3
{[%clk 0:02:47.5]} 11... f6 {[%clk 0:02:47.5]} 12. Nh4 {[%clk 0:02:34.4]} 12...
g6 {[%clk 0:02:43]} 13. Nf3 {[%clk 0:02:25.1]} 13... Qd7 {[%clk 0:02:38.6]} 14.
a3 {[%clk 0:02:17.2]} 14... Bd6 {[%clk 0:02:38.1]} 15. Rb1 {[%clk 0:02:03.3]}
15... a5 {[%clk 0:02:35.2]} 16. c3 {[%clk 0:02:02.5]} 16... c5 {[%clk
0:02:31.8]} 17. a4 {[%clk 0:01:58.5]} 17... b5 {[%clk 0:02:15.3]} 18. Ra1 {[%clk
0:01:51.3]} 18... dxc3 {[%clk 0:02:01.6]} 19. bxc3 {[%clk 0:01:45.6]} 19... b4
{[%clk 0:02:01.8]} 20. Qc2 {[%clk 0:01:39.6]} 20... O-O {[%clk 0:01:56.4]} 21.
Nd2 {[%clk 0:01:35.4]} 21... Bc7 {[%clk 0:01:45.2]} 22. Nc4 {[%clk 0:01:24.7]}
22... Rad8 {[%clk 0:01:41.8]} 23. Ke2 {[%clk 0:01:19.8]} 23... f5 {[%clk
0:01:33.9]} 24. f3 {[%clk 0:01:18.1]} 24... Nc6 {[%clk 0:01:15.7]} 25. Rd1
{[%clk 0:01:12.7]} 25... Ned4+ {[%clk 0:01:15.2]} 26. cxd4 {[%clk 0:01:11]}
26... Nxd4+ {[%clk 0:01:15.4]} 27. Kd2 {[%clk 0:01:11.7]} 27... Nxc2 {[%clk
0:01:15.5]} 28. Kxc2 {[%clk 0:01:12.6]} 28... f4 {[%clk 0:01:09.7]} 29. Ne2
{[%clk 0:01:11.9]} 29... g5 {[%clk 0:01:09.4]} 30. Bb2 {[%clk 0:01:11.2]} 30...
Rfe8 {[%clk 0:01:06.3]} 31. h3 {[%clk 0:01:09.7]} 31... h5 {[%clk 0:01:06]} 32.
Nc1 {[%clk 0:01:08.4]} 32... g4 {[%clk 0:01:02.7]} 33. hxg4 {[%clk 0:01:09.3]}
33... hxg4 {[%clk 0:01:02.7]} 34. Nb3 {[%clk 0:01:07.5]} 34... Re7 {[%clk
0:00:37.4]} 35. Rd2 {[%clk 0:00:53.7]} 35... Rde8 {[%clk 0:00:28.8]} 36. Nbxa5
{[%clk 0:00:38.9]} 36... gxf3 {[%clk 0:00:27.6]} 37. gxf3 {[%clk 0:00:37.9]}
37... Bxa5 {[%clk 0:00:26]} 38. Nxa5 {[%clk 0:00:38.8]} 38... Ra8 {[%clk
0:00:25.8]} 39. Nc4 {[%clk 0:00:33.4]} 39... Rxa4 {[%clk 0:00:25.2]} 40. Rg2+
{[%clk 0:00:33.8]} 40... Rg7 {[%clk 0:00:24.3]} 41. Rxg7+ {[%clk 0:00:31.4]}
41... Kxg7 {[%clk 0:00:23.9]} 42. Nxe5 {[%clk 0:00:29.1]} 42... Qb5 {[%clk
0:00:19.3]} 43. Rg1+ {[%clk 0:00:22.4]} 43... Kf8 {[%clk 0:00:18.7]} 44. Nc4
{[%clk 0:00:23]} 44... b3+ {[%clk 0:00:17.1]} 45. Kb1 {[%clk 0:00:19.8]} 45...
Rxc4 {[%clk 0:00:17]} 46. dxc4 {[%clk 0:00:19.6]} 46... Qxc4 {[%clk 0:00:17.5]}
0-1

[Event "Late-Titled-Tuesday-Blitz-February-13-2024"]
[Site "Chess.com"]
[Date "2024.02.13"]
[Round "10"]
[White "Bigfish1995"]
[Black "ChristopherYoo"]
[Result "1-0"]
[WhiteElo "3169"]
[BlackElo "2967"]
[TimeControl "180+1"]
[EndTime "15:55:22 PST"]
[Termination "Bigfish1995 won on time"]

1. e4 {[%clk 0:02:44.2]} 1... c5 {[%clk 0:02:59.5]} 2. Nf3 {[%clk 0:02:43.6]}
2... d6 {[%clk 0:02:59.6]} 3. Bb5+ {[%clk 0:02:43.1]} 3... Bd7 {[%clk
0:02:59.8]} 4. c4 {[%clk 0:02:42.4]} 4... Nf6 {[%clk 0:02:59.3]} 5. Nc3 {[%clk
0:02:42.1]} 5... g6 {[%clk 0:02:59.6]} 6. O-O {[%clk 0:02:41.2]} 6... Bg7 {[%clk
0:02:59.9]} 7. h3 {[%clk 0:02:41.4]} 7... O-O {[%clk 0:03:00.2]} 8. d3 {[%clk
0:02:40.3]} 8... Nc6 {[%clk 0:02:57.6]} 9. Ba4 {[%clk 0:02:36.3]} 9... a6 {[%clk
0:02:57]} 10. a3 {[%clk 0:02:18.8]} 10... Rb8 {[%clk 0:02:50.8]} 11. Rb1 {[%clk
0:02:18.1]} 11... Nd4 {[%clk 0:02:42.7]} 12. Nxd4 {[%clk 0:02:11]} 12... cxd4
{[%clk 0:02:43.6]} 13. Ne2 {[%clk 0:02:10.8]} 13... Bxa4 {[%clk 0:02:44]} 14.
Qxa4 {[%clk 0:02:10.6]} 14... Nd7 {[%clk 0:02:44.1]} 15. b4 {[%clk 0:02:05.4]}
15... b5 {[%clk 0:02:43.2]} 16. cxb5 {[%clk 0:02:04.8]} 16... axb5 {[%clk
0:02:43.1]} 17. Qb3 {[%clk 0:02:03.3]} 17... Nb6 {[%clk 0:02:37.7]} 18. f4
{[%clk 0:01:53.8]} 18... e5 {[%clk 0:02:03.9]} 19. Bd2 {[%clk 0:01:43.5]} 19...
Rc8 {[%clk 0:01:56.6]} 20. Rf2 {[%clk 0:01:29.4]} 20... d5 {[%clk 0:01:51.6]}
21. Ng3 {[%clk 0:01:23.3]} 21... Rc6 {[%clk 0:01:35.2]} 22. f5 {[%clk
0:01:20.6]} 22... h5 {[%clk 0:01:17.7]} 23. fxg6 {[%clk 0:01:07.6]} 23... fxg6
{[%clk 0:01:16.9]} 24. Rxf8+ {[%clk 0:01:06.6]} 24... Bxf8 {[%clk 0:01:17.8]}
25. Rf1 {[%clk 0:01:03.4]} 25... h4 {[%clk 0:01:13.8]} 26. Nh1 {[%clk
0:01:01.2]} 26... Bg7 {[%clk 0:01:04.6]} 27. Nf2 {[%clk 0:00:56]} 27... Kh7
{[%clk 0:01:04]} 28. Qd1 {[%clk 0:00:49.8]} 28... Qd7 {[%clk 0:00:43.9]} 29. Bg5
{[%clk 0:00:34.6]} 29... Bf6 {[%clk 0:00:38.6]} 30. Qd2 {[%clk 0:00:28.4]} 30...
Qe7 {[%clk 0:00:38.8]} 31. Bxf6 {[%clk 0:00:25.9]} 31... Rxf6 {[%clk 0:00:39.7]}
32. Rc1 {[%clk 0:00:14.6]} 32... Rf4 {[%clk 0:00:39.4]} 33. Rc5 {[%clk
0:00:14.4]} 33... Na4 {[%clk 0:00:20.3]} 34. Rxd5 {[%clk 0:00:11.1]} 34... Nc3
{[%clk 0:00:20.8]} 35. Rc5 {[%clk 0:00:11.7]} 35... Qg5 {[%clk 0:00:16.1]} 36.
Qe1 {[%clk 0:00:10.6]} 36... Qg3 {[%clk 0:00:10.4]} 37. Rc7+ {[%clk 0:00:05.6]}
37... Kh6 {[%clk 0:00:08.6]} 38. Qd2 {[%clk 0:00:05.7]} 38... Qg5 {[%clk
0:00:03.4]} 39. Qe1 {[%clk 0:00:03.4]} 39... Qg3 {[%clk 0:00:03.2]} 40. Qd2
{[%clk 0:00:03.8]} 40... Qg5 {[%clk 0:00:02.1]} 41. Kh1 {[%clk 0:00:04]} 41...
Rf6 {[%clk 0:00:01.4]} 42. Ng4+ {[%clk 0:00:03.7]} 42... Kh5 {[%clk 0:00:01.8]}
43. Rh7+ {[%clk 0:00:04.3]} 1-0

[Event "Late-Titled-Tuesday-Blitz-February-13-2024"]
[Site "Chess.com"]
[Date "2024.02.13"]
[Round "10"]
[White "Zhigalko_Sergei"]
[Black "GMRAVEN_ON_YOUTUBE"]
[Result "1-0"]
[WhiteElo "2935"]
[BlackElo "2772"]
[TimeControl "180+1"]
[EndTime "15:55:23 PST"]
[Termination "Zhigalko_Sergei won on time"]

1. e4 {[%clk 0:03:00.9]} 1... c5 {[%clk 0:02:59.9]} 2. Nf3 {[%clk 0:03:00.8]}
2... e6 {[%clk 0:02:59.1]} 3. c3 {[%clk 0:03:01]} 3... Nf6 {[%clk 0:02:58.6]} 4.
e5 {[%clk 0:03:01.4]} 4... Nd5 {[%clk 0:02:59.2]} 5. Bc4 {[%clk 0:03:02.1]} 5...
d6 {[%clk 0:02:57.2]} 6. d4 {[%clk 0:03:02.3]} 6... cxd4 {[%clk 0:02:56.7]} 7.
cxd4 {[%clk 0:03:03.2]} 7... dxe5 {[%clk 0:02:54.5]} 8. dxe5 {[%clk 0:03:02.1]}
8... Nc6 {[%clk 0:02:52.9]} 9. O-O {[%clk 0:03:00.3]} 9... Be7 {[%clk
0:02:52.8]} 10. Qe2 {[%clk 0:03:00.2]} 10... O-O {[%clk 0:02:49.8]} 11. Rd1
{[%clk 0:03:00.4]} 11... Qa5 {[%clk 0:02:41.6]} 12. a3 {[%clk 0:02:47.2]} 12...
Rd8 {[%clk 0:02:37.4]} 13. Qe4 {[%clk 0:02:40.6]} 13... Bd7 {[%clk 0:02:25.3]}
14. h4 {[%clk 0:01:47.6]} 14... Be8 {[%clk 0:02:21.2]} 15. Nbd2 {[%clk
0:01:37.3]} 15... Nb6 {[%clk 0:02:12.5]} 16. Bd3 {[%clk 0:01:36.9]} 16... g6
{[%clk 0:02:13]} 17. Nf1 {[%clk 0:01:24.2]} 17... Qd5 {[%clk 0:02:00.2]} 18. Qe2
{[%clk 0:01:21.5]} 18... Nd4 {[%clk 0:01:55]} 19. Nxd4 {[%clk 0:01:12.4]} 19...
Qxd4 {[%clk 0:01:54.6]} 20. h5 {[%clk 0:00:58.2]} 20... Ba4 {[%clk 0:01:48.1]}
21. Bc2 {[%clk 0:00:49.6]} 21... Qxd1 {[%clk 0:01:16.3]} 22. Bxd1 {[%clk
0:00:49.2]} 22... Rxd1 {[%clk 0:01:17.2]} 23. Kh2 {[%clk 0:00:22.5]} 23... Rc8
{[%clk 0:01:09.4]} 24. b3 {[%clk 0:00:22.1]} 24... Bxb3 {[%clk 0:01:09.7]} 25.
Bb2 {[%clk 0:00:22.2]} 25... Rd7 {[%clk 0:00:52.5]} 26. Ne3 {[%clk 0:00:21.3]}
26... Rcd8 {[%clk 0:00:50.4]} 27. Bc3 {[%clk 0:00:17.4]} 27... Nd5 {[%clk
0:00:42.2]} 28. Nxd5 {[%clk 0:00:13.8]} 28... Rxd5 {[%clk 0:00:42.8]} 29. Bb4
{[%clk 0:00:12.7]} 29... Bg5 {[%clk 0:00:33]} 30. Qg4 {[%clk 0:00:10.2]} 30...
Rxe5 {[%clk 0:00:25]} 31. Qg3 {[%clk 0:00:09.6]} 31... Rf5 {[%clk 0:00:23.1]}
32. Qxb3 {[%clk 0:00:08.9]} 32... a5 {[%clk 0:00:17.1]} 33. Bc3 {[%clk
0:00:07.9]} 33... Rd3 {[%clk 0:00:17.3]} 34. Rd1 {[%clk 0:00:07.4]} 34... Rxd1
{[%clk 0:00:09.1]} 35. Qxd1 {[%clk 0:00:07.4]} 35... Bf4+ {[%clk 0:00:09.6]} 36.
g3 {[%clk 0:00:06]} 36... Rd5 {[%clk 0:00:09.7]} 37. Qb3 {[%clk 0:00:05.4]}
37... Bg5 {[%clk 0:00:08.2]} 38. hxg6 {[%clk 0:00:04.7]} 38... hxg6 {[%clk
0:00:09.1]} 39. Qxb7 {[%clk 0:00:04.4]} 1-0

[Event "Late-Titled-Tuesday-Blitz-February-13-2024"]
[Site "Chess.com"]
[Date "2024.02.13"]
[Round "10"]
[White "WilsonPalencia21"]
[Black "VladimirBugayev"]
[Result "1-0"]
[WhiteElo "2537"]
[BlackElo "2399"]
[TimeControl "180+1"]
[EndTime "15:55:24 PST"]
[Termination "WilsonPalencia21 won on time"]

1. d4 {[%clk 0:03:00.9]} 1... Nf6 {[%clk 0:02:59.6]} 2. c4 {[%clk 0:03:01]} 2...
c5 {[%clk 0:03:00.3]} 3. d5 {[%clk 0:03:01.1]} 3... b5 {[%clk 0:03:01]} 4. cxb5
{[%clk 0:03:02]} 4... a6 {[%clk 0:03:01.6]} 5. bxa6 {[%clk 0:03:02.9]} 5... Bxa6
{[%clk 0:03:02]} 6. Nc3 {[%clk 0:03:03.4]} 6... g6 {[%clk 0:03:02.3]} 7. e4
{[%clk 0:03:03.9]} 7... Bxf1 {[%clk 0:03:02.8]} 8. Kxf1 {[%clk 0:03:04.8]} 8...
d6 {[%clk 0:03:02.8]} 9. g3 {[%clk 0:03:05.3]} 9... Bg7 {[%clk 0:03:03.2]} 10.
Kg2 {[%clk 0:03:06.2]} 10... O-O {[%clk 0:03:03.7]} 11. Nf3 {[%clk 0:03:06.7]}
11... Qb6 {[%clk 0:03:04.2]} 12. a4 {[%clk 0:03:06.9]} 12... Na6 {[%clk
0:03:04.3]} 13. Nd2 {[%clk 0:03:06.1]} 13... Nc7 {[%clk 0:03:01.1]} 14. Ra3
{[%clk 0:03:04.9]} 14... Nd7 {[%clk 0:02:54.5]} 15. Qc2 {[%clk 0:03:04.8]} 15...
e6 {[%clk 0:02:45.2]} 16. Rd1 {[%clk 0:02:57.8]} 16... exd5 {[%clk 0:02:38.6]}
17. exd5 {[%clk 0:02:57.3]} 17... Qa6 {[%clk 0:02:35.8]} 18. Nf3 {[%clk
0:02:43.4]} 18... Qc4 {[%clk 0:02:17.3]} 19. Qe4 {[%clk 0:02:42.9]} 19... Qa6
{[%clk 0:01:55.9]} 20. Bf4 {[%clk 0:02:40.3]} 20... Rfe8 {[%clk 0:01:51.7]} 21.
Qc2 {[%clk 0:02:40]} 21... Ne5 {[%clk 0:01:42.7]} 22. Bxe5 {[%clk 0:02:30.7]}
22... dxe5 {[%clk 0:01:42.6]} 23. d6 {[%clk 0:02:28.5]} 23... Ne6 {[%clk
0:01:42.6]} 24. Nb5 {[%clk 0:02:26.1]} 24... e4 {[%clk 0:01:35.9]} 25. Qxe4
{[%clk 0:02:19.5]} 25... Nd4 {[%clk 0:01:35.2]} 26. Qd3 {[%clk 0:02:13.9]} 26...
Qc6 {[%clk 0:01:27]} 27. Nc7 {[%clk 0:01:45.8]} 27... Rxa4 {[%clk 0:01:07.4]}
28. Rxa4 {[%clk 0:01:32.9]} 28... Qxa4 {[%clk 0:01:02.4]} 29. Nxe8 {[%clk
0:01:31.5]} 29... Qxe8 {[%clk 0:01:03.3]} 30. Nxd4 {[%clk 0:01:28.5]} 30... Bxd4
{[%clk 0:01:03]} 31. Qf3 {[%clk 0:01:25.3]} 31... Qe6 {[%clk 0:00:56]} 32. b4
{[%clk 0:01:19.3]} 32... Qxd6 {[%clk 0:00:55]} 33. Qe4 {[%clk 0:01:12.9]} 33...
Qf6 {[%clk 0:00:50.9]} 34. Qf3 {[%clk 0:01:04.7]} 34... Qb6 {[%clk 0:00:50.8]}
35. bxc5 {[%clk 0:01:02.9]} 35... Qxc5 {[%clk 0:00:50.9]} 36. Qf4 {[%clk
0:00:57.9]} 36... Be5 {[%clk 0:00:41.8]} 37. Qe4 {[%clk 0:00:56.2]} 37... Bf6
{[%clk 0:00:34.9]} 38. Qa8+ {[%clk 0:00:52.1]} 38... Kg7 {[%clk 0:00:34.5]} 39.
Qe4 {[%clk 0:00:52.2]} 39... Qc7 {[%clk 0:00:27.4]} 40. h4 {[%clk 0:00:50.8]}
40... h5 {[%clk 0:00:26.8]} 41. Rd3 {[%clk 0:00:46.4]} 41... Qb6 {[%clk
0:00:26.8]} 42. Rd7 {[%clk 0:00:44.8]} 42... Qb5 {[%clk 0:00:09.2]} 43. Qd5
{[%clk 0:00:40.6]} 43... Qxd5+ {[%clk 0:00:08.8]} 44. Rxd5 {[%clk 0:00:41.3]}
44... Be7 {[%clk 0:00:07.8]} 45. Kf3 {[%clk 0:00:41.3]} 45... Bf6 {[%clk
0:00:08.1]} 46. Ke4 {[%clk 0:00:41.4]} 46... Bc3 {[%clk 0:00:08]} 47. Rd7 {[%clk
0:00:40.7]} 47... Be1 {[%clk 0:00:07.4]} 48. Kf3 {[%clk 0:00:40.3]} 48... Bc3
{[%clk 0:00:07.5]} 49. Rc7 {[%clk 0:00:37.4]} 49... Ba5 {[%clk 0:00:07]} 50. Rb7
{[%clk 0:00:37.6]} 50... Bc3 {[%clk 0:00:06.8]} 51. Ke4 {[%clk 0:00:36.7]} 51...
Be1 {[%clk 0:00:06.8]} 52. Ke3 {[%clk 0:00:35.7]} 52... Bc3 {[%clk 0:00:06.1]}
53. Ke2 {[%clk 0:00:34]} 53... Bd4 {[%clk 0:00:05.9]} 54. f3 {[%clk 0:00:33.5]}
54... Be5 {[%clk 0:00:04.9]} 55. Kf2 {[%clk 0:00:33.6]} 55... Bd6 {[%clk
0:00:04.7]} 56. g4 {[%clk 0:00:32.8]} 56... hxg4 {[%clk 0:00:03.5]} 57. fxg4
{[%clk 0:00:33.3]} 57... Be5 {[%clk 0:00:02]} 58. Kf3 {[%clk 0:00:33.5]} 58...
Kg8 {[%clk 0:00:01.8]} 59. Re7 {[%clk 0:00:32.8]} 1-0

[Event "Late-Titled-Tuesday-Blitz-February-13-2024"]
[Site "Chess.com"]
[Date "2024.02.13"]
[Round "10"]
[White "kibromNNN"]
[Black "N_I_Chess"]
[Result "0-1"]
[WhiteElo "1815"]
[BlackElo "2271"]
[TimeControl "180+1"]
[EndTime "15:55:24 PST"]
[Termination "N_I_Chess won by checkmate"]

1. d4 {[%clk 0:02:59.3]} 1... Nf6 {[%clk 0:02:59]} 2. c4 {[%clk 0:02:59.1]} 2...
e6 {[%clk 0:02:58.4]} 3. Nc3 {[%clk 0:02:59.3]} 3... Bb4 {[%clk 0:02:55.9]} 4.
Qc2 {[%clk 0:02:59.1]} 4... d5 {[%clk 0:02:55.4]} 5. cxd5 {[%clk 0:02:58.8]}
5... exd5 {[%clk 0:02:56.3]} 6. Bg5 {[%clk 0:02:58]} 6... c6 {[%clk 0:02:55]} 7.
e3 {[%clk 0:02:56.5]} 7... O-O {[%clk 0:02:53.3]} 8. Bd3 {[%clk 0:02:55.5]} 8...
h6 {[%clk 0:02:53.7]} 9. Bh4 {[%clk 0:02:54.6]} 9... Be6 {[%clk 0:02:51.3]} 10.
Nf3 {[%clk 0:02:53.3]} 10... Nbd7 {[%clk 0:02:50.2]} 11. O-O {[%clk 0:02:52.4]}
11... Re8 {[%clk 0:02:48.8]} 12. a3 {[%clk 0:02:51.7]} 12... Bd6 {[%clk
0:02:47.9]} 13. b4 {[%clk 0:02:51.6]} 13... a6 {[%clk 0:02:44]} 14. Rab1 {[%clk
0:02:49.2]} 14... Qe7 {[%clk 0:02:21.4]} 15. Bg3 {[%clk 0:02:38.6]} 15... Bg4
{[%clk 0:02:13.6]} 16. Bf5 {[%clk 0:02:06]} 16... Bxg3 {[%clk 0:02:02]} 17. hxg3
{[%clk 0:02:04.5]} 17... g6 {[%clk 0:01:52.4]} 18. Bxg4 {[%clk 0:01:56.2]} 18...
Nxg4 {[%clk 0:01:53.3]} 19. a4 {[%clk 0:01:52.3]} 19... b5 {[%clk 0:01:44.9]}
20. a5 {[%clk 0:01:44]} 20... Ndf6 {[%clk 0:01:25.9]} 21. Rbc1 {[%clk
0:01:35.7]} 21... Qxb4 {[%clk 0:01:20.8]} 22. Ne2 {[%clk 0:01:25.9]} 22... Rac8
{[%clk 0:01:07.1]} 23. Ra1 {[%clk 0:01:07]} 23... Ne4 {[%clk 0:00:54.9]} 24. Nf4
{[%clk 0:01:04.9]} 24... Qd6 {[%clk 0:00:29.8]} 25. Nd3 {[%clk 0:00:55.5]} 25...
Kg7 {[%clk 0:00:18.7]} 26. Nfe5 {[%clk 0:00:48.9]} 26... Nxe5 {[%clk 0:00:17.3]}
27. Nxe5 {[%clk 0:00:49.6]} 27... c5 {[%clk 0:00:17.8]} 28. Qd3 {[%clk
0:00:46.4]} 28... c4 {[%clk 0:00:17.3]} 29. Qe2 {[%clk 0:00:45.7]} 29... b4
{[%clk 0:00:15.5]} 30. Rfc1 {[%clk 0:00:44.5]} 30... h5 {[%clk 0:00:14.9]} 31.
g4 {[%clk 0:00:37.9]} 31... f6 {[%clk 0:00:13.5]} 32. Nf3 {[%clk 0:00:31.2]}
32... hxg4 {[%clk 0:00:12.8]} 33. Ne1 {[%clk 0:00:29.1]} 33... Rh8 {[%clk
0:00:11.6]} 34. Qxg4 {[%clk 0:00:22.9]} 34... Qh2+ {[%clk 0:00:07]} 35. Kf1
{[%clk 0:00:22.6]} 35... f5 {[%clk 0:00:07.7]} 36. Qd1 {[%clk 0:00:19.1]} 36...
Qh1+ {[%clk 0:00:07.3]} 37. Ke2 {[%clk 0:00:17.9]} 37... b3 {[%clk 0:00:08.2]}
38. Rab1 {[%clk 0:00:12.1]} 38... Qg1 {[%clk 0:00:08.4]} 39. g3 {[%clk
0:00:07.6]} 39... Qxf2# {[%clk 0:00:08.3]} 0-1

[Event "Late-Titled-Tuesday-Blitz-February-13-2024"]
[Site "Chess.com"]
[Date "2024.02.13"]
[Round "10"]
[White "Binary010"]
[Black "FairChess_on_YouTube"]
[Result "0-1"]
[WhiteElo "2885"]
[BlackElo "3066"]
[TimeControl "180+1"]
[EndTime "15:55:25 PST"]
[Termination "FairChess_on_YouTube won on time"]

1. e4 {[%clk 0:03:00.9]} 1... c5 {[%clk 0:02:54.9]} 2. Nf3 {[%clk 0:02:59.2]}
2... g6 {[%clk 0:02:54]} 3. d4 {[%clk 0:02:59.3]} 3... cxd4 {[%clk 0:02:54]} 4.
Nxd4 {[%clk 0:03:00.2]} 4... Nf6 {[%clk 0:02:52.2]} 5. Nc3 {[%clk 0:02:59.8]}
5... d6 {[%clk 0:02:52.6]} 6. Be3 {[%clk 0:02:58.5]} 6... Nc6 {[%clk 0:02:52.7]}
7. f3 {[%clk 0:02:56.2]} 7... h5 {[%clk 0:02:52.7]} 8. Bc4 {[%clk 0:02:47.6]}
8... Bg7 {[%clk 0:02:49.7]} 9. Qd2 {[%clk 0:02:46.1]} 9... Bd7 {[%clk
0:02:46.5]} 10. O-O-O {[%clk 0:02:44]} 10... Na5 {[%clk 0:02:44.6]} 11. Bb3
{[%clk 0:02:37]} 11... Rc8 {[%clk 0:02:44.2]} 12. Kb1 {[%clk 0:02:36.9]} 12...
Nc4 {[%clk 0:02:42.7]} 13. Bxc4 {[%clk 0:02:36.4]} 13... Rxc4 {[%clk 0:02:43.6]}
14. Nde2 {[%clk 0:02:06.2]} 14... Qa5 {[%clk 0:02:37.1]} 15. Bd4 {[%clk
0:01:52.1]} 15... Rxd4 {[%clk 0:01:10.6]} 16. Nxd4 {[%clk 0:01:33.7]} 16... Qb6
{[%clk 0:01:10.9]} 17. Rhe1 {[%clk 0:01:21.5]} 17... O-O {[%clk 0:01:08.7]} 18.
Nb3 {[%clk 0:01:00.2]} 18... Rc8 {[%clk 0:01:07.2]} 19. Qe3 {[%clk 0:00:43.2]}
19... Qa6 {[%clk 0:00:56.6]} 20. Qd3 {[%clk 0:00:35.7]} 20... Qc6 {[%clk
0:00:50.5]} 21. Nd5 {[%clk 0:00:31.4]} 21... Nxd5 {[%clk 0:00:49.8]} 22. exd5
{[%clk 0:00:31.7]} 22... Qb6 {[%clk 0:00:48.7]} 23. Rd2 {[%clk 0:00:19.8]} 23...
Bf5 {[%clk 0:00:46.7]} 24. Qe3 {[%clk 0:00:20]} 24... Qxe3 {[%clk 0:00:44.9]}
25. Rxe3 {[%clk 0:00:20.9]} 25... Bh6 {[%clk 0:00:45.5]} 26. Ree2 {[%clk
0:00:20.5]} 26... Bxd2 {[%clk 0:00:38.7]} 27. Rxd2 {[%clk 0:00:20.5]} 27... h4
{[%clk 0:00:35.4]} 28. h3 {[%clk 0:00:17]} 28... Kg7 {[%clk 0:00:35.1]} 29. Nd4
{[%clk 0:00:15.3]} 29... Bd7 {[%clk 0:00:34.1]} 30. b3 {[%clk 0:00:14.8]} 30...
Kf6 {[%clk 0:00:34.7]} 31. Re2 {[%clk 0:00:13.1]} 31... b5 {[%clk 0:00:33.5]}
32. Re4 {[%clk 0:00:11.2]} 32... g5 {[%clk 0:00:32.2]} 33. f4 {[%clk 0:00:09.4]}
33... g4 {[%clk 0:00:32.3]} 34. hxg4 {[%clk 0:00:07.4]} 34... Bxg4 {[%clk
0:00:33.2]} 35. f5 {[%clk 0:00:07.7]} 35... Rg8 {[%clk 0:00:31]} 36. Kb2 {[%clk
0:00:04.7]} 36... b4 {[%clk 0:00:26.9]} 37. a3 {[%clk 0:00:03.8]} 37... a5
{[%clk 0:00:27.2]} 38. axb4 {[%clk 0:00:04.1]} 38... axb4 {[%clk 0:00:28.1]} 39.
Nc6 {[%clk 0:00:04]} 39... Bxf5 {[%clk 0:00:19.9]} 40. Rxh4 {[%clk 0:00:04]}
40... Rxg2 {[%clk 0:00:20.5]} 41. Nxb4 {[%clk 0:00:04.6]} 41... Bg6 {[%clk
0:00:16.9]} 42. Kc3 {[%clk 0:00:03.5]} 42... Kg5 {[%clk 0:00:16.7]} 43. Rd4
{[%clk 0:00:03.1]} 43... f5 {[%clk 0:00:17.1]} 44. Nd3 {[%clk 0:00:03.3]} 44...
f4 {[%clk 0:00:16.8]} 45. Nxf4 {[%clk 0:00:02.4]} 45... Rxc2+ {[%clk 0:00:16.4]}
46. Kb4 {[%clk 0:00:03.1]} 46... Bf5 {[%clk 0:00:16]} 47. Nd3 {[%clk 0:00:01.8]}
47... Kf6 {[%clk 0:00:15.5]} 0-1